fUSD/lending_fUSD_20240814
["ID","MTS","AMOUNT","RATE_DAILY","PERIOD"]
[334836263,1723606275188,-2396.58,0.0001452,2]
[334836264,1723606275198,-500.0,0.0001452,2]
[334836265,1723606275208,-500.0,0.0001452,2]
[334836266,1723606275217,-500.0,0.0001452,2]
[334836267,1723606275227,-500.0,0.0001452,2]
[334836268,1723606275237,-500.0,0.0001452,2]
[334836269,1723606275247,-500.0,0.0001452,2]
[334836270,1723606275257,-1901.88,0.0001452,2]
[334836271,1723606275267,-500.0,0.0001452,2]
[334836272,1723606275277,-926.19,0.0001452,2]
[334836273,1723606275287,-745.53,0.0001452,2]
[334836274,1723606275297,-1384.68,0.0001452,2]
[334836275,1723606275306,-614.08,0.0001452,2]
[334836276,1723606275317,-500.0,0.0001452,2]
[334836277,1723606275326,-500.0,0.0001452,2]
[334836278,1723606275336,-500.0,0.0001452,2]
[334836279,1723606275345,-500.0,0.0001452,2]
[334836280,1723606275360,-699.17,0.0001452,2]
[334836281,1723606275374,-610.28,0.0001452,2]
[334836282,1723606275383,-500.0,0.0001452,2]
[334836283,1723606275393,-500.0,0.0001452,2]
[334836284,1723606275402,-770.51,0.0001452,2]
[334836285,1723606275412,-500.0,0.0001452,2]
[334836286,1723606275422,-1153.37,0.0001452,2]
[334836287,1723606275432,-694.46,0.0001452,2]
[334836288,1723606275441,-1462.38,0.0001452,2]
[334836289,1723606275452,-500.0,0.0001452,2]
[334836290,1723606275462,-1122.17,0.0001452,2]
[334836291,1723606275473,-500.0,0.0001452,2]
[334836292,1723606275483,-1156.13,0.0001452,2]
[334836293,1723606275494,-500.0,0.0001452,2]
[334836294,1723606275504,-500.0,0.0001452,2]
[334836295,1723606275514,-500.0,0.0001452,2]
[334836296,1723606275524,-928.32,0.0001452,2]
[334836297,1723606275534,-500.0,0.0001452,2]
[334836298,1723606275544,-515.31,0.0001452,2]
[334836299,1723606275554,-1786.82,0.0001452,2]
[334836300,1723606275564,-500.0,0.0001452,2]
[334836301,1723606275574,-500.0,0.0001452,2]
[334836302,1723606275584,-1783.67,0.0001452,2]
[334836303,1723606275594,-500.0,0.0001452,2]
[334836304,1723606275607,-1322.93,0.0001452,2]
[334836305,1723606275617,-500.0,0.0001452,2]
[334836306,1723606275627,-5125.24,0.0001452,2]
[334836307,1723606275636,-924.38,0.0001452,2]
[334836308,1723606275646,-500.0,0.0001452,2]
[334836309,1723606275656,-539.32,0.0001452,2]
[334836310,1723606275666,-500.0,0.0001452,2]
[334836311,1723606275675,-2719.36,0.0001452,2]
[334836312,1723606275684,-1170.65,0.0001452,2]
[334836313,1723606275694,-770.29,0.0001452,2]
[334836314,1723606275705,-1497.14,0.0001452,2]
[334836315,1723606275715,-553.66,0.0001452,2]
[334836316,1723606275724,-16400.66,0.0001452,2]
[334836317,1723606275734,-564.36,0.0001452,2]
[334836318,1723606275743,-1305.03,0.0001452,2]
[334836319,1723606275756,-500.0,0.0001452,2]
[334836320,1723606275765,-500.0,0.0001452,2]
[334836321,1723606275775,-637.34900494,0.0001452,2]
[334836322,1723606275785,-5173.19,0.0001452,2]
[334836323,1723606275794,-500.0,0.0001452,2]
[334836324,1723606275803,-1004.75,0.0001452,2]
[334836325,1723606275813,-500.0,0.0001452,2]
[334836326,1723606275823,-1530.58,0.0001452,2]
[334836327,1723606275833,-500.0,0.0001452,2]
[334836328,1723606275844,-1256.42,0.0001452,2]
[334836329,1723606275858,-1870.61,0.0001452,2]
[334836330,1723606275869,-500.0,0.0001452,2]
[334836331,1723606275879,-12596.78,0.0001452,2]
[334836332,1723606275890,-842.61,0.0001452,2]
[334836333,1723606275901,-500.0,0.0001452,2]
[334836334,1723606275911,-6083.44,0.0001452,2]
[334836335,1723606275922,-500.0,0.0001452,2]
[334836336,1723606275932,-2906.96,0.0001452,2]
[334836337,1723606275942,-3359.26,0.0001452,2]
[334836338,1723606275952,-1592.04,0.0001452,2]
[334836339,1723606275962,-750.28,0.0001452,2]
[334836340,1723606275972,-500.0,0.0001452,2]
[334836341,1723606275983,-1862.96,0.0001452,2]
[334836342,1723606275992,-1588.9,0.0001452,2]
[334836343,1723606276002,-1891.12,0.0001452,2]
[334836344,1723606276012,-11429.35,0.0001452,2]
[334836345,1723606276022,-500.0,0.0001452,2]
[334836346,1723606276032,-500.0,0.0001452,2]
[334836347,1723606276042,-658.23,0.0001452,2]
[334836348,1723606276051,-2138.35,0.0001452,2]
[334836349,1723606276061,-2102.25,0.0001452,2]
[334836350,1723606276071,-1413.63,0.0001452,2]
[334836351,1723606276081,-500.0,0.0001452,2]
[334836352,1723606276090,-500.0,0.0001452,2]
[334836353,1723606276105,-500.0,0.0001452,2]
[334836354,1723606276115,-500.0,0.0001452,2]
[334836355,1723606276125,-1399.72,0.0001452,2]
[334836356,1723606276135,-636.18,0.0001452,2]
[334836357,1723606276145,-5737.21,0.0001452,2]
[334836358,1723606276154,-1253.23,0.0001452,2]
[334836359,1723606276164,-2124.1,0.0001452,2]
[334836360,1723606276174,-651.66,0.0001452,2]
[334836361,1723606276184,-2351.24,0.0001452,2]
[334836362,1723606276195,-817.32,0.0001452,2]
[334836363,1723606276205,-2185.53,0.0001452,2]
[334836364,1723606276214,-500.0,0.0001452,2]
[334836365,1723606276224,-1352.61,0.0001452,2]
[334836366,1723606276234,-500.0,0.0001452,2]
[334836367,1723606276243,-684.57,0.0001452,2]
[334836368,1723606276252,-778.49,0.0001452,2]
[334836369,1723606276262,-500.0,0.0001452,2]
[334836370,1723606276271,-27654.11,0.0001452,2]
[334836371,1723606276281,-500.0,0.0001452,2]
[334836372,1723606276291,-1814.01,0.0001452,2]
[334836373,1723606276301,-10314.84,0.0001452,2]
[334836374,1723606276311,-590.29,0.0001452,2]
[334836375,1723606276321,-500.0,0.0001452,2]
[334836376,1723606276330,-1693.11,0.0001452,2]
[334836377,1723606276340,-500.0,0.0001452,2]
[334836378,1723606276353,-1593.87,0.0001452,2]
[334836379,1723606276363,-549.48,0.0001452,2]
[334836380,1723606276374,-500.0,0.0001452,2]
[334836381,1723606276383,-14230.09,0.0001452,2]
[334836382,1723606276393,-500.0,0.0001452,2]
[334836383,1723606276403,-2050.16,0.0001452,2]
[334836384,1723606276413,-993.77,0.0001452,2]
[334836385,1723606276422,-500.0,0.0001452,2]
[334836386,1723606276432,-3696.5,0.0001452,2]
[334836387,1723606276442,-9937.73,0.0001452,2]
[334836388,1723606276452,-921.41,0.0001452,2]
[334836389,1723606276462,-500.0,0.0001452,2]
[334836390,1723606276471,-1659.6,0.0001452,2]
[334836391,1723606276481,-9757.03,0.0001452,2]
[334836392,1723606276491,-500.0,0.0001452,2]
[334836393,1723606276501,-1044.77,0.0001452,2]
[334836394,1723606276511,-1562.26,0.0001452,2]
[334836395,1723606276520,-1339.04,0.0001452,2]
[334836396,1723606276530,-500.0,0.0001452,2]
[334836397,1723606276539,-875.35,0.0001452,2]
[334836398,1723606276548,-9774.8,0.0001452,2]
[334836399,1723606276557,-3603.02,0.0001452,2]
[334836400,1723606276665,-500.0,0.0001452,2]
[334836401,1723606276676,-543.00402238,0.0001452,2]
[334836402,1723606276686,-1150.12,0.0001452,2]
[334836403,1723606276696,-1064.84,0.0001452,2]
[334836404,1723606276707,-29689.87,0.0001452,2]
[334836405,1723606276717,-1736.37,0.0001452,2]
[334836406,1723606276727,-500.0,0.0001452,2]
[334836407,1723606276737,-1500.0,0.0001452,2]
[334836408,1723606276747,-594.87,0.0001452,2]
[334836409,1723606276759,-500.0,0.0001452,2]
[334836410,1723606276769,-5930.72,0.0001452,2]
[334836411,1723606276779,-20601.04,0.0001452,2]
[334836412,1723606276789,-23067.66,0.0001452,2]
[334836413,1723606276799,-500.0,0.0001452,2]
[334836414,1723606276808,-826.8,0.0001452,2]
[334836415,1723606276818,-953.29,0.0001452,2]
[334836416,1723606276827,-500.0,0.0001452,2]
[334836417,1723606276837,-500.0,0.0001452,2]
[334836418,1723606276847,-500.0,0.0001452,2]
[334836419,1723606276862,-2419.57,0.0001452,2]
[334836420,1723606276872,-500.0,0.0001452,2]
[334836421,1723606276881,-1096.36,0.0001452,2]
[334836422,1723606276891,-8563.51,0.0001452,2]
[334836423,1723606276901,-1397.06,0.0001452,2]
[334836424,1723606276911,-1627.93,0.0001452,2]
[334836425,1723606276920,-1164.95,0.0001452,2]
[334836426,1723606276930,-500.0,0.0001452,2]
[334836427,1723606276939,-500.0,0.0001452,2]
[334836428,1723606276948,-1702.34,0.0001452,2]
[334836429,1723606276958,-500.0,0.0001452,2]
[334836430,1723606276967,-2048.2,0.0001452,2]
[334836431,1723606276976,-851.9,0.0001452,2]
[334836432,1723606276985,-1238.06,0.0001452,2]
[334836433,1723606276995,-500.0,0.0001452,2]
[334836434,1723606277004,-16099.84,0.0001452,2]
[334836435,1723606277013,-628.86,0.0001452,2]
[334836436,1723606277022,-596.77,0.0001452,2]
[334836437,1723606277032,-1464.0,0.0001452,2]
[334836438,1723606277041,-1396.44,0.0001452,2]
[334836439,1723606277050,-2777.77,0.0001452,2]
[334836440,1723606277059,-1764.6,0.0001452,2]
[334836441,1723606277068,-4171.0,0.0001452,2]
[334836442,1723606277078,-500.0,0.0001452,2]
[334836443,1723606277087,-748.05,0.0001452,2]
[334836444,1723606277097,-1367.2,0.0001452,2]
[334836445,1723606277109,-2379.71,0.0001452,2]
[334836446,1723606277119,-884.33,0.0001452,2]
[334836447,1723606277128,-1243.89,0.0001452,2]
[334836448,1723606277138,-6336.06,0.0001452,2]
[334836449,1723606277147,-500.0,0.0001452,2]
[334836450,1723606277157,-6816.03,0.0001452,2]
[334836451,1723606277166,-1308.01,0.0001452,2]
[334836452,1723606277176,-2181.16,0.0001452,2]
[334836453,1723606277185,-2759.13,0.0001452,2]
[334836454,1723606277195,-1039.89,0.0001452,2]
[334836455,1723606277205,-1071.9,0.0001452,2]
[334836456,1723606277215,-1837.41,0.0001452,2]
[334836457,1723606277225,-1232.31,0.0001452,2]
[334836458,1723606277235,-2210.33,0.0001452,2]
[334836459,1723606277245,-530.06,0.0001452,2]
[334836460,1723606277256,-500.0,0.0001452,2]
[334836461,1723606277266,-1400.58,0.0001452,2]
[334836462,1723606277277,-9975.79,0.0001452,2]
[334836463,1723606277287,-1200.24,0.0001452,2]
[334836464,1723606277298,-2699.35,0.0001452,2]
[334836465,1723606277308,-518.22,0.0001452,2]
[334836466,1723606277318,-627.28190485,0.0001452,2]
[334836467,1723606277328,-8510.16,0.0001452,2]
[334836468,1723606277339,-562.88,0.0001452,2]
[334836469,1723606277349,-806.35,0.0001452,2]
[334836470,1723606277373,-1090.4,0.0001452,2]
[334836471,1723606277383,-1785.97,0.0001452,2]
[334836472,1723606277393,-772.04,0.0001452,2]
[334836473,1723606277403,-1077.86,0.0001452,2]
[334836474,1723606277413,-1376.89,0.0001452,2]
[334836475,1723606277423,-1432.27,0.0001452,2]
[334836476,1723606277432,-1419.53,0.0001452,2]
[334836477,1723606277442,-2309.29,0.0001452,2]
[334836478,1723606277451,-4717.91,0.0001452,2]
[334836479,1723606277461,-500.0,0.0001452,2]
[334836480,1723606277470,-3633.76,0.0001452,2]
[334836481,1723606277479,-1027.69,0.0001452,2]
[334836482,1723606277489,-828.94,0.0001452,2]
[334836483,1723606277498,-16630.67,0.0001452,2]
[334836484,1723606277508,-1472.8,0.0001452,2]
[334836485,1723606277517,-716.19,0.0001452,2]
[334836486,1723606277527,-2336.71,0.0001452,2]
[334836487,1723606277536,-1630.08,0.0001452,2]
[334836488,1723606277545,-1495.12,0.0001452,2]
[334836489,1723606277555,-500.0,0.0001452,2]
[334836490,1723606277564,-500.0,0.0001452,2]
[334836491,1723606277573,-1585.64,0.0001452,2]
[334836492,1723606277583,-500.0,0.0001452,2]
[334836493,1723606277591,-1477.26,0.0001452,2]
[334836494,1723606277606,-500.0,0.0001452,2]
[334836495,1723606277615,-1034.77,0.0001452,2]
[334836496,1723606277624,-1409.85,0.0001452,2]
[334836497,1723606277634,-4316.92,0.0001452,2]
[334836498,1723606277643,-1414.28,0.0001452,2]
[334836499,1723606277653,-808.06,0.0001452,2]
[334836500,1723606277662,-500.0,0.0001452,2]
[334836501,1723606277670,-3209.27,0.0001452,2]
[334836502,1723606277681,-500.0,0.0001452,2]
[334836503,1723606277691,-754.12,0.0001452,2]
[334836504,1723606277700,-1167.72,0.0001452,2]
[334836505,1723606277709,-500.0,0.0001452,2]
[334836506,1723606277718,-500.0,0.0001452,2]
[334836507,1723606277727,-3222.79,0.0001452,2]
[334836508,1723606277737,-6375.33,0.0001452,2]
[334836509,1723606277747,-3914.08,0.0001452,2]
[334836510,1723606277756,-500.0,0.0001452,2]
[334836511,1723606277769,-500.0,0.0001452,2]
[334836512,1723606277778,-500.0,0.0001452,2]
[334836513,1723606277787,-4368.17,0.0001452,2]
[334836514,1723606277797,-3464.28,0.0001452,2]
[334836515,1723606277807,-1316.98,0.0001452,2]
[334836516,1723606277816,-500.0,0.0001452,2]
[334836517,1723606277825,-3951.04,0.0001452,2]
[334836518,1723606277835,-500.0,0.0001452,2]
[334836519,1723606277845,-515.72,0.0001452,2]
[334836520,1723606277859,-1503.5,0.0001452,2]
[334836521,1723606277868,-500.0,0.0001452,2]
[334836522,1723606277877,-7597.75,0.0001452,2]
[334836523,1723606277886,-1180.15,0.0001452,2]
[334836524,1723606277896,-500.0,0.0001452,2]
[334836525,1723606277906,-500.0,0.0001452,2]
[334836526,1723606277916,-2371.76,0.0001452,2]
[334836527,1723606277925,-823.66,0.0001452,2]
[334836528,1723606277934,-2626.42,0.0001452,2]
[334836529,1723606277943,-2213.62,0.0001452,2]
[334836530,1723606277952,-9863.1,0.0001452,2]
[334836531,1723606277961,-3408.68,0.0001452,2]
[334836532,1723606277970,-13054.54,0.0001452,2]
[334836533,1723606277979,-1051.11,0.0001452,2]
[334836534,1723606277988,-2708.69,0.0001452,2]
[334836535,1723606277998,-500.0,0.0001452,2]
[334836536,1723606278007,-531.32,0.0001452,2]
[334836537,1723606278017,-2248.27,0.0001452,2]
[334836538,1723606278026,-500.0,0.0001452,2]
[334836539,1723606278035,-1699.77,0.0001452,2]
[334836540,1723606278044,-4651.28,0.0001452,2]
[334836541,1723606278053,-5188.03,0.0001452,2]
[334836542,1723606278063,-2317.6,0.0001452,2]
[334836543,1723606278073,-500.0,0.0001452,2]
[334836544,1723606278082,-931.26,0.0001452,2]
[334836545,1723606278091,-500.0,0.0001452,2]
[334836546,1723606278102,-3304.68,0.0001452,2]
[334836547,1723606278115,-1265.11,0.0001452,2]
[334836548,1723606278124,-614.46,0.0001452,2]
[334836549,1723606278133,-518.36266908,0.0001452,2]
[334836550,1723606278143,-500.0,0.0001452,2]
[334836551,1723606278153,-500.0,0.0001452,2]
[334836552,1723606278162,-2028.9,0.0001452,2]
[334836553,1723606278172,-3647.07,0.0001452,2]
[334836554,1723606278182,-500.0,0.0001452,2]
[334836555,1723606278191,-3715.29,0.0001452,2]
[334836556,1723606278199,-4675.48,0.0001452,2]
[334836557,1723606278209,-500.0,0.0001452,2]
[334836558,1723606278218,-3923.08,0.0001452,2]
[334836559,1723606278227,-500.0,0.0001452,2]
[334836560,1723606278236,-3224.78,0.0001452,2]
[334836561,1723606278246,-4295.2,0.0001452,2]
[334836562,1723606278255,-825.04,0.0001452,2]
[334836563,1723606278265,-1259.06,0.0001452,2]
[334836564,1723606278274,-500.0,0.0001452,2]
[334836565,1723606278283,-500.0,0.0001452,2]
[334836566,1723606278292,-1723.66,0.0001452,2]
[334836567,1723606278301,-500.0,0.0001452,2]
[334836568,1723606278311,-3159.18,0.0001452,2]
[334836569,1723606278320,-4205.68,0.0001452,2]
[334836570,1723606278330,-500.0,0.0001452,2]
[334836571,1723606278339,-500.0,0.0001452,2]
[334836572,1723606278348,-500.0,0.0001452,2]
[334836573,1723606278362,-2684.08,0.0001452,2]
[334836574,1723606278372,-12670.39,0.0001452,2]
[334836575,1723606278381,-1451.8,0.0001452,2]
[334836576,1723606278391,-500.0,0.0001452,2]
[334836577,1723606278400,-944.25,0.0001452,2]
[334836578,1723606278409,-5210.36,0.0001452,2]
[334836579,1723606278419,-500.0,0.0001452,2]
[334836580,1723606278428,-500.0,0.0001452,2]
[334836581,1723606278437,-2653.26,0.0001452,2]
[334836582,1723606278446,-1486.96,0.0001452,2]
[334836583,1723606278455,-2658.12,0.0001452,2]
[334836584,1723606278466,-500.0,0.0001452,2]
[334836585,1723606278475,-1068.96,0.0001452,2]
[334836586,1723606278484,-536.54,0.0001452,2]
[334836587,1723606278494,-3034.55,0.0001452,2]
[334836588,1723606278504,-1036.59,0.0001452,2]
[334836589,1723606278513,-666.32,0.0001452,2]
[334836590,1723606278522,-3671.67,0.0001452,2]
[334836591,1723606278531,-3682.9,0.0001452,2]
[334836592,1723606278541,-1514.82,0.0001452,2]
[334836593,1723606278551,-500.0,0.0001452,2]
[334836594,1723606278560,-1352.59,0.0001452,2]
[334836595,1723606278569,-817.61,0.0001452,2]
[334836596,1723606278579,-3930.45,0.0001452,2]
[334836597,1723606278588,-500.0,0.0001452,2]
[334836598,1723606278597,-1099.67,0.0001452,2]
[334836599,1723606278620,-3001.63,0.0001452,2]
[334836600,1723606278629,-792.89,0.0001452,2]
[334836601,1723606278638,-1292.34,0.0001452,2]
[334836602,1723606278647,-1091.54,0.0001452,2]
[334836603,1723606278656,-4457.11,0.0001452,2]
[334836604,1723606278667,-549.36,0.0001452,2]
[334836605,1723606278677,-896.44,0.0001452,2]
[334836606,1723606278686,-1018.26,0.0001452,2]
[334836607,1723606278695,-581.85,0.0001452,2]
[334836608,1723606278706,-500.0,0.0001452,2]
[334836609,1723606278715,-2569.68,0.0001452,2]
[334836610,1723606278725,-1376.93,0.0001452,2]
[334836611,1723606278735,-500.0,0.0001452,2]
[334836612,1723606278744,-571.51,0.0001452,2]
[334836613,1723606278754,-3140.85,0.0001452,2]
[334836614,1723606278767,-3734.95,0.0001452,2]
[334836615,1723606278776,-500.0,0.0001452,2]
[334836616,1723606278786,-3302.41,0.0001452,2]
[334836617,1723606278795,-500.0,0.0001452,2]
[334836618,1723606278804,-500.0,0.0001452,2]
[334836619,1723606278814,-670.67,0.0001452,2]
[334836620,1723606278823,-2638.69,0.0001452,2]
[334836621,1723606278832,-2369.05,0.0001452,2]
[334836622,1723606278842,-500.0,0.0001452,2]
[334836623,1723606278856,-500.0,0.0001452,2]
[334836624,1723606278866,-13946.1,0.0001452,2]
[334836625,1723606278875,-2001.83,0.0001452,2]
[334836626,1723606278884,-500.0,0.0001452,2]
[334836627,1723606278893,-2345.36,0.0001452,2]
[334836628,1723606278903,-567.9,0.0001452,2]
[334836629,1723606278913,-2422.96,0.0001452,2]
[334836630,1723606278922,-1927.98,0.0001452,2]
[334836631,1723606278931,-500.0,0.0001452,2]
[334836632,1723606278941,-7987.29,0.0001452,2]
[334836633,1723606278951,-500.0,0.0001452,2]
[334836634,1723606278961,-400.0,0.0001452,2]
[334836635,1723606278970,-901.36,0.0001452,2]
[334836636,1723606278979,-806.26,0.0001452,2]
[334836637,1723606278989,-572.16,0.0001452,2]
[334836638,1723606278999,-1375.7,0.0001452,2]
[334836639,1723606279008,-897.37,0.0001452,2]
[334836640,1723606279018,-500.0,0.0001452,2]
[334836641,1723606279027,-2356.28,0.0001452,2]
[334836642,1723606279037,-500.0,0.0001452,2]
[334836643,1723606279047,-923.75,0.0001452,2]
[334836644,1723606279056,-4803.25,0.0001452,2]
[334836645,1723606279066,-500.0,0.0001452,2]
[334836646,1723606279078,-663.0,0.0001452,2]
[334836647,1723606279087,-3366.69,0.0001452,2]
[334836648,1723606279096,-3831.66,0.0001452,2]
[334836649,1723606279110,-500.0,0.0001452,2]
[334836650,1723606279119,-8902.34,0.0001452,2]
[334836651,1723606279129,-683.18,0.0001452,2]
[334836652,1723606279139,-534.95,0.0001452,2]
[334836653,1723606279148,-500.0,0.0001452,2]
[334836654,1723606279158,-500.0,0.00014793,2]
[334836655,1723606279168,-500.0,0.00014793,2]
[334836656,1723606279178,-500.0,0.00014793,2]
[334836657,1723606279188,-710.12,0.00014793,2]
[334836658,1723606279197,-710.12,0.00014793,2]
[334836659,1723606279206,-710.12,0.00014793,2]
[334836660,1723606279216,-710.12,0.00014793,2]
[334836661,1723606279225,-710.12,0.00014793,2]
[334836662,1723606279235,-710.12,0.00014793,2]
[334836663,1723606279245,-710.12,0.00014793,2]
[334836664,1723606279257,-710.26169318,0.00014793,2]
[334836665,1723606279275,-500.0,0.00014794,2]
[334836666,1723606279289,-500.0,0.00014794,2]
[334836667,1723606279300,-1000.0,0.00014794,2]
[334836668,1723606279309,-500.0,0.00014794,2]
[334836669,1723606279319,-1095.06,0.00014794,2]
[334836670,1723606279329,-1320.5,0.00014794,2]
[334836671,1723606279339,-500.0,0.00014794,2]
[334836672,1723606279348,-1071.49,0.00014794,2]
[334836673,1723606279366,-500.0,0.00014794,2]
[334836674,1723606279376,-500.0,0.00014794,2]
[334836675,1723606279386,-500.0,0.00014794,2]
[334836676,1723606279396,-744.97,0.00014794,2]
[334836677,1723606279404,-1591.04,0.00014794,2]
[334836678,1723606279414,-500.0,0.00014794,2]
[334836679,1723606279423,-500.0,0.00014794,2]
[334836680,1723606279433,-500.0,0.00014794,2]
[334836681,1723606279442,-544.13,0.00014794,2]
[334836682,1723606279452,-500.0,0.00014794,2]
[334836683,1723606279462,-500.0,0.00014794,2]
[334836684,1723606279473,-520.95508592,0.00014794,2]
[334836685,1723606279483,-500.0,0.00014794,2]
[334836686,1723606279493,-500.0,0.00014794,2]
[334836687,1723606279503,-500.0,0.00014794,2]
[334836688,1723606279513,-628.21,0.00014794,2]
[334836689,1723606279523,-500.0,0.00014794,2]
[334836690,1723606279533,-1008.16,0.00014794,2]
[334836691,1723606279542,-500.0,0.00014794,2]
[334836692,1723606279551,-796.04,0.00014794,2]
[334836693,1723606279561,-500.0,0.00014794,2]
[334836694,1723606279571,-500.0,0.00014794,2]
[334836695,1723606279581,-1082.31,0.00014794,2]
[334836696,1723606279590,-500.0,0.00014794,2]
[334836697,1723606279600,-500.0,0.00014794,2]
[334836698,1723606279613,-500.0,0.00014794,2]
[334836699,1723606279623,-1596.04,0.00014794,2]
[334836700,1723606279633,-724.72,0.00014794,2]
[334836701,1723606279643,-647.99,0.00014794,2]
[334836702,1723606279653,-500.0,0.00014794,2]
[334836703,1723606279662,-977.0,0.00014794,2]
[334836704,1723606279672,-500.0,0.00014794,2]
[334836705,1723606279682,-840.35,0.00014794,2]
[334836706,1723606279692,-500.0,0.00014794,2]
[334836707,1723606279702,-500.0,0.00014794,2]
[334836708,1723606279712,-809.96,0.00014794,2]
[334836709,1723606279723,-500.0,0.00014794,2]
[334836710,1723606279732,-2029.07,0.00014794,2]
[334836711,1723606279742,-500.0,0.00014794,2]
[334836712,1723606279756,-500.0,0.00014794,2]
[334836713,1723606279765,-500.0,0.00014794,2]
[334836714,1723606279775,-500.0,0.00014794,2]
[334836715,1723606279784,-232.13138219,0.00014794,2]
[334836716,1723606279794,-500.0,0.00014794,2]
[334836717,1723606279803,-529.41,0.00014794,2]
[334836718,1723606279813,-500.0,0.00014794,2]
[334836719,1723606279823,-649.16,0.00014794,2]
[334836720,1723606279833,-615.91,0.00014794,2]
[334836721,1723606279842,-500.0,0.00014794,2]
[334836722,1723606279854,-766.96,0.00014794,2]
[334836723,1723606279865,-500.0,0.00014794,2]
[334836724,1723606279874,-809.11,0.00014794,2]
[334836725,1723606279884,-577.76,0.00014794,2]
[334836726,1723606279893,-1127.52,0.00014794,2]
[334836727,1723606279903,-500.0,0.00014794,2]
[334836728,1723606279912,-1199.36,0.00014794,2]
[334836729,1723606279923,-500.0,0.00014794,2]
[334836730,1723606279932,-500.0,0.00014794,2]
[334836731,1723606279941,-2817.32,0.00014794,2]
[334836732,1723606279951,-500.0,0.00014794,2]
[334836733,1723606279961,-500.0,0.00014794,2]
[334836734,1723606279971,-516.75,0.00014794,2]
[334836735,1723606279981,-685.63,0.00014794,2]
[334836736,1723606279990,-626.55,0.00014794,2]
[334836737,1723606280000,-500.0,0.00014794,2]
[334836738,1723606280010,-744.96,0.00014794,2]
[334836739,1723606280020,-965.94,0.00014794,2]
[334836740,1723606280030,-1535.24,0.00014794,2]
[334836741,1723606280039,-500.0,0.00014794,2]
[334836742,1723606280049,-500.0,0.00014794,2]
[334836743,1723606280059,-1269.45,0.00014794,2]
[334836744,1723606280069,-500.0,0.00014794,2]
[334836745,1723606280078,-500.0,0.00014794,2]
[334836746,1723606280087,-500.0,0.00014794,2]
[334836747,1723606280098,-951.12,0.00014794,2]
[334836748,1723606280110,-518.69,0.00014794,2]
[334836749,1723606280120,-1022.29,0.00014794,2]
[334836750,1723606280130,-500.0,0.00014794,2]
[334836751,1723606280140,-500.0,0.00014794,2]
[334836752,1723606280149,-500.0,0.00014794,2]
[334836753,1723606280159,-500.0,0.00014794,2]
[334836754,1723606280169,-500.0,0.00014794,2]
[334836755,1723606280178,-957.28,0.00014794,2]
[334836756,1723606280188,-500.0,0.00014794,2]
[334836757,1723606280197,-317.50746684,0.00014794,2]
[334836758,1723606280207,-500.0,0.00014794,2]
[334836759,1723606280216,-500.0,0.00014794,2]
[334836760,1723606280225,-553.98,0.00014794,2]
[334836761,1723606280234,-500.0,0.00014794,2]
[334836762,1723606280244,-555.03,0.00014794,2]